{"text_format":"3","workbook":"xlsx","n_sheets":5,"sheets":["岗位信息表","报名表填表说明","报名填报信息","生成报名表 ","Sheet3"],"not_rendered":{"defined_names":1},"read":"whole","date_system":"1900"}

{"sheet":"岗位信息表","index":0,"n_rows":16,"n_cols":9,"rows_kept":16,"merged":[[0,0,0,8],[1,0,2,0],[1,1,2,1],[1,2,2,2],[1,3,2,3],[1,4,2,4],[1,5,1,8],[3,1,12,1],[3,2,12,2],[13,1,15,1],[13,2,15,2]]}
["迁安市2022年教师专项选聘岗位信息表"]
["序号","单位\n名称","经费\n形式","选聘\n人数","选聘\n岗位","岗位要求"]
[{"$nulls":5},"学历底限","学位底限","专业或专业类别","教师资格证"]
[1,"迁安市教育局直属公办高中和初中","全额",30,"语文教师","本科","学士","本科具体专业名称：汉语言文学、汉语言、汉语国际教育\n研究生一级学科：中国语言文学、汉语国际教育\n研究生具体专业名称：学科教学（语文）、汉语言文化国际教育、语文教育","高中、初中语文"]
[2,null,null,29,"数学教师","本科","学士","本科专业类：数学类\n研究生一级学科：数学\n研究生具体专业名称：学科教学（数学）","高中、初中数学"]
[3,null,null,20,"英语教师","本科","学士","本科具体专业名称：英语、商务英语\n研究生具体专业名称：学科教学（英语）、英语教育、英语笔译、英语口译、英语语言文学、商务英语研究、国际商务英语","高中、初中英语"]
[4,null,null,1,"日语教师","本科","学士","本科具体专业名称：日语\n研究生具体专业名称：日语语言文学、日语笔译、日语口译","高中日语"]
[5,null,null,14,"政治教师","本科","学士","本科专业类：政治学类、马克思主义理论类、哲学类\n研究生一级学科：政治学、马克思主义理论、哲学\n研究生具体专业名称：学科教学（思政）、政治社会学","高中、初中政治"]
[6,null,null,8,"历史教师","本科","学士","本科专业类：历史学类\n研究生一级学科：历史学、中国史、世界史\n研究生具体专业名称：学科教学（历史）、历史教育学","高中、初中历史"]
[7,null,null,21,"地理教师","本科","学士","本科专业类：地理科学类\n研究生一级学科：地理学\n研究生具体专业名称：学科教学（地理）、地理教育学","高中、初中地理"]
[8,null,null,19,"物理教师","本科","学士","本科专业类：物理学类\n研究生一级学科：物理学\n研究生具体专业名称：学科教学（物理）","高中、初中物理"]
[9,null,null,10,"化学教师","本科","学士","本科专业类：化学类\n研究生一级学科：化学\n研究生具体专业名称：学科教学（化学）","高中、初中化学"]
[10,null,null,8,"生物教师","本科","学士","本科专业类：生物科学类\n研究生一级学科：生物学\n研究生具体专业名称：学科教学（生物）、生物教育学","高中、初中生物"]
[11,"迁安市教育局直属公办实验小学","全额",12,"语文教师","本科","学士","本科具体专业名称：汉语言文学、汉语言、汉语国际教育、小学教育\n研究生一级学科：中国语言文学、汉语国际教育\n研究生具体专业名称：学科教学（语文）、汉语言文化国际教育、语文教育、小学教育","小学及以上语文或小学全科"]
[12,null,null,5,"数学教师","本科","学士","本科专业类：数学类\n本科具体专业名称：小学教育\n研究生一级学科：数学\n研究生具体专业名称：学科教学（数学）、小学教育","小学及以上数学或小学全科"]
[13,null,null,3,"英语教师","本科","学士","本科具体专业名称：英语、商务英语、小学教育\n研究生具体专业名称：学科教学（英语）、英语教育、英语笔译、英语口译、英语语言文学、商务英语研究、国际商务英语、小学教育","小学及以上英语或小学全科"]

{"sheet":"报名表填表说明","index":1,"n_rows":7,"n_cols":2,"rows_kept":7,"merged":[[0,1,0,7]]}
[null,"填表说明"]
[null,"1.报名前请一定认真阅读说明，按要求填报。"]
[null,"2.汇总表信息生成到报名表，信息要填全，严格按照范例填写。"]
[null,"3.报名表只需插入照片，其信息由汇总表自动生成。"]
[null,"4.打印报名表，手写签名，按手押。"]
[null,"5.电子版发到邮箱qajszp@126.com，用自己姓名命名文件名称。"]
[null,"6.建议用wps2019及以上版本填报。"]

{"sheet":"报名填报信息","index":2,"n_rows":3,"n_cols":22,"rows_kept":3,"merged":[[0,0,0,10]]}
["本表信息会自动生成到报名表，严格按范例填写"]
["姓名","性别","出生年月","民族","政治面貌","家庭住址","身份证号码","联系电话","毕业院校","学习形式","所学专业","学历","学位","教师资格种类","教师资格证编号","报考岗位","是否有就业协议书","本人简历1","本人简历2","本人简历3","本人简历4","本人简历5"]
[{"$nulls":10},"与毕业证书上专业一字不差，2023毕业生以就业推荐表为准。",{"$nulls":6},"2015.09至2018.07迁安市第一中学学生","2018.09至2022.09河北师大学生"]

{"sheet":"生成报名表 ","index":3,"n_rows":17,"n_cols":8,"rows_kept":17,"merged":[[1,0,1,7],[2,6,4,7],[3,2,3,3],[3,4,3,5],[4,0,4,1],[4,2,4,5],[5,0,5,1],[5,2,5,4],[5,6,5,7],[6,0,6,1],[6,2,6,4],[6,6,6,7],[7,0,7,1],[7,2,7,3],[8,0,8,1],[8,2,8,3],[8,4,8,5],[8,6,8,7],[9,0,9,1],[9,2,9,7],[10,0,10,3],[10,4,10,7],[11,0,15,0],[11,1,11,7],[12,1,12,7],[13,1,13,7],[14,1,14,7],[15,1,15,7],[16,1,16,7],[17,0,17,7]]}
[]
["迁安市2022年选聘教师报名登记表"]
["姓  名",{"$f":"报名填报信息!A3","v":0},"性  别",{"$f":"报名填报信息!B3","v":0},"出生年月",{"$f":"报名填报信息!C3","v":0},"点击此处，选择菜单插入/图片/,插入本人照片"]
["民  族",{"$f":"报名填报信息!D3","v":0},"政治面貌",null,{"$f":"报名填报信息!E3","v":0}]
["家庭住址",null,{"$f":"报名填报信息!F3","v":0}]
["身份证号码",null,{"$f":"报名填报信息!G3","v":0},null,null,"联系电话",{"$f":"报名填报信息!H3","v":0}]
["毕业院校",null,{"$f":"报名填报信息!I3","v":0},null,null,"学习形式",{"$f":"报名填报信息!J3","v":0}]
["所学专业",null,{"$f":"报名填报信息!K3","v":"与毕业证书上专业一字不差，2023毕业生以就业推荐表为准。"},null,"学  历",{"$f":"报名填报信息!L3","v":0},"学位",{"$f":"报名填报信息!M3","v":0}]
["教师资格种类",null,{"$f":"报名填报信息!N3","v":0},null,"教师资格证编号",null,{"$f":"报名填报信息!O3","v":0}]
["报考岗位",null,{"$f":"报名填报信息!P3","v":0}]
["是否有本科或研究生就业协议书",{"$nulls":3},{"$f":"报名填报信息!Q3","v":0}]
["本人简历",{"$f":"报名填报信息!R3","v":"2015.09至2018.07迁安市第一中学学生"}]
[null,{"$f":"报名填报信息!S3","v":"2018.09至2022.09河北师大学生"}]
[null,{"$f":"报名填报信息!T3","v":0}]
[]
[null,{"$f":"报名填报信息!U3","v":0}]
["填表\n承诺","    表内所填内容全部属实,如有不实自愿接受取消资格处理。\n\n本人签字：               年    月   日 "]

{"sheet":"Sheet3","index":4,"n_rows":14,"n_cols":8,"rows_kept":14,"hidden":true}
[]
["中共党员","普通全日制","大学本科","学士","高中语文","中学语文教师","是","男"]
["中共预备党员","其它","研究生","硕士","高中数学","中学数学教师","否","女"]
["民主党派",null,null,"博士","高中英语","中学英语教师"]
["群众",null,null,"无","高中物理","中学日语教师"]
[{"$nulls":4},"高中化学","中学政治教师"]
[{"$nulls":4},"高中生物","中学历史教师"]
[{"$nulls":4},"高中政治","中学地理教师"]
[{"$nulls":4},"高中历史","中学物理教师"]
[{"$nulls":4},"高中地理","中学化学教师"]
[{"$nulls":4},"无","中学生物教师"]
[{"$nulls":5},"小学语文教师"]
[{"$nulls":5},"小学数学教师"]
[{"$nulls":5},"小学英语教师"]